bitfinex-derivatives/quotes_ETHF0:USTF0_20241013
["timestamp","ask_amount","ask_price","bid_price","bid_amount"]
[1728861884429,3.72140201,2464.4,2464.0,1.45346273]
[1728861884624,1.32,2464.1,2464.0,0.79704]
[1728861884828,1.32,2464.1,2463.9,4.03515]
[1728861884829,1.72592,2464.1,2463.9,4.03515]
[1728861885023,1.72592,2464.1,2463.9,0.40596]
[1728861885024,2.1287,2464.0,2463.9,0.40596]
[1728861885427,2.53464,2464.0,2463.9,0.40596]
[1728861885619,2.53464,2464.0,2463.8,0.3964]
[1728861885620,2.53465,2464.0,2463.8,0.80236]
[1728861885826,1.32,2463.9,2463.8,0.80237]
[1728861886832,1.32,2463.9,2463.6,0.4128]
[1728861887037,1.32,2463.7,2463.6,0.8188]
[1728861902146,6.61770201,2464.0,2463.9,0.40596]
[1728861902147,4.42244,2464.0,2463.9,0.40596]
[1728861902344,5.3365,2464.0,2463.9,0.40596]
[1728861902547,5.3365,2464.0,2463.7,0.3986]
[1728861902862,4.42245,2464.0,2463.8,0.40597]
[1728861903147,4.42245,2464.0,2463.8,0.40596]
[1728861903342,1.32,2463.9,2463.8,0.40596]
[1728861905851,0.40597,2463.8,2463.6,0.4128]
[1728861906058,0.40597,2463.8,2463.7,0.40599]
[1728861906359,0.40597,2463.8,2463.6,0.81879]
[1728861906859,0.40597,2463.8,2463.6,0.4128]
[1728861907157,0.40597,2463.8,2463.6,0.81881]
[1728861907158,1.32,2463.7,2463.6,0.81881]
[1728861909959,0.40601,2463.6,2463.5,0.3964]
[1728861910152,1.72601,2463.6,2463.5,0.80242]
[1728861910454,2.51751,2463.6,2463.5,0.3964]
[1728861910858,2.51751,2463.6,2463.5,0.80242]
[1728861911053,2.1115,2463.6,2463.5,0.80242]
[1728861911261,1.58633201,2463.8,2463.5,1.7164]
[1728861911454,1.72598,2463.8,2463.7,0.40599]
[1728861911651,1.32,2463.8,2463.7,0.40599]
[1728861912254,1.72597,2463.8,2463.7,0.40599]
[1728861913160,1.32,2463.8,2463.7,0.40599]
[1728861913357,1.72597,2463.8,2463.7,0.40599]
[1728861915362,2.37783201,2463.9,2463.6,0.4007]
[1728861915666,2.37783201,2463.9,2463.8,0.40597]
[1728861915667,1.32,2463.9,2463.8,0.40597]
[1728861915964,1.72596,2463.9,2463.8,0.40597]
[1728861916170,1.72596,2463.9,2463.8,0.78847]
[1728861916554,1.32,2463.9,2463.8,0.78847]
[1728861918566,1.32,2464.0,2463.9,0.40596]
[1728861921363,1.32,2464.0,2463.8,1.7025]
[1728861921567,1.32,2464.0,2463.9,0.40596]
[1728861921959,1.7289,2464.0,2463.9,0.40596]
[1728861923656,2.13484,2464.0,2463.9,0.40596]
[1728861923859,2.13484,2464.0,2463.8,0.78847]
[1728861923860,1.7289,2464.0,2463.8,0.78847]
[1728861924058,1.32,2463.9,2463.6,0.406]
[1728861924274,1.32,2463.7,2463.6,0.406]
[1728861924461,1.72599,2463.7,2463.6,0.406]
[1728861924666,0.40601,2463.6,2463.5,0.3893]
[1728861924864,1.72601,2463.6,2463.5,0.3893]
[1728861927168,4.93381,2463.6,2463.5,0.3893]
[1728861928176,1.72601,2463.6,2463.5,0.3893]
[1728861928470,3.31234201,2463.6,2463.5,0.3893]
[1728861930369,1.72601,2463.6,2463.5,0.3893]
[1728861931375,3.84992934,2463.6,2463.5,0.3893]
[1728861932273,1.72601,2463.6,2463.5,0.3893]
[1728861933071,1.72601,2463.6,2463.5,0.79532]
[1728861933072,3.84992934,2463.6,2463.5,0.79532]
[1728861933473,3.84992934,2463.6,2463.5,0.3893]
[1728861934274,3.84992934,2463.6,2463.5,0.79532]
[1728861935178,3.84992934,2463.6,2463.5,0.40602]
[1728861936476,3.84992934,2463.6,2463.5,0.56305838]
[1728861937380,3.84992934,2463.6,2463.5,0.15703838]
[1728861937576,0.40604,2463.5,2463.3,1.46840273]
[1728861937880,1.32,2463.4,2463.3,1.46840273]
[1728861938080,3.3150708,2463.4,2463.3,1.46840273]
[1728861938279,3.3150708,2463.4,2463.3,1.95554328]
[1728861938476,3.3150708,2463.4,2463.3,1.75239598]
[1728861939481,3.3150708,2463.4,2463.3,0.69003325]
[1728861939779,3.3150708,2463.4,2463.3,0.28399325]
[1728861939972,3.3150708,2463.4,2463.3,0.69005325]
[1728861940170,3.3150708,2463.4,2463.3,0.28399325]
[1728861940379,0.40607,2463.2,2463.1,1.06236273]
[1728861940576,3.31445559,2463.2,2463.1,0.28401515]
[1728861940878,1.32,2463.2,2462.9,1.06236273]
[1728861941081,1.72611,2463.0,2462.9,1.46847273]
[1728861941375,1.72611,2463.0,2462.9,0.69011635]
[1728861941575,1.32,2463.0,2462.9,0.69011635]
[1728861941775,1.72611,2463.0,2462.9,0.28400635]
[1728861941981,3.04611,2463.0,2462.9,0.28400635]
[1728861942180,3.04611,2463.0,2462.7,5.20749409]
[1728861942181,4.22793253,2463.0,2462.7,4.67631273]
[1728861942383,1.72614,2462.8,2462.7,3.61395]
[1728861942585,1.72614,2462.8,2462.7,3.89782113]
[1728861943085,1.32,2462.8,2462.7,3.61395]
[1728861944887,4.5278,2462.8,2462.7,0.40615]
[1728861945187,4.93394,2462.8,2462.7,0.40615]
[1728861945588,4.93394,2462.8,2462.3,3.39791273]
[1728861945589,4.93394,2462.8,2462.6,0.40616]
[1728861945778,1.32,2462.7,2462.6,0.40616]
[1728861953004,2.546,2462.7,2462.6,0.40616]
[1728861965417,1.226,2462.7,2462.6,5.78696]
[1728861965908,2.546,2462.7,2462.6,5.78696]
[1728861970017,0.8336,2462.7,2462.6,5.78696]
[1728861970314,0.4183,2462.7,2462.6,6.19476]
[1728861976321,0.4183,2462.7,2462.6,6.4783762]
[1728861976524,0.4183,2462.7,2462.6,7.54073893]
[1728861978018,0.4183,2462.7,2462.6,10.74853893]
[1728861980229,0.4183,2462.7,2462.6,12.09502819]
[1728861980417,0.4183,2462.7,2462.6,11.03266546]
[1728861980616,0.4183,2462.7,2462.6,12.62620955]
[1728861980819,1.32,2462.8,2462.7,0.40615]
[1728861981017,1.32,2462.8,2462.7,1.75329408]
[1728861982020,0.8199,2462.9,2462.7,4.01414006]
[1728861982323,2.63897934,2463.3,2463.2,0.40607]
[1728861982324,0.094,2463.3,2463.2,0.40607]
[1728861982523,2.90793253,2463.5,2463.2,5.38]
[1728861982819,2.64994157,2463.7,2463.6,0.40601]
[1728861982820,3.72813253,2463.7,2463.6,0.40601]
[1728861983023,2.1402,2463.7,2463.6,0.40601]
[1728861985025,1.32,2463.7,2463.6,0.40601]
[1728861985224,1.7436,2463.9,2463.8,0.40597]
[1728861985524,1.32,2464.0,2463.9,0.40596]
[1728861985715,1.32,2463.9,2463.8,0.40597]
[1728861988622,1.32,2463.9,2463.8,0.53290219]
[1728861988822,1.32,2463.9,2463.8,2.00964195]
[1728861989225,1.32,2464.0,2463.9,0.40596]
[1728861989725,0.3927,2464.1,2463.9,4.9481]
[1728861989923,1.32,2464.1,2464.0,0.40594]
[1728861997526,0.40594,2464.0,2463.9,3.61375]
[1728861997729,1.32,2464.0,2463.9,3.61375]
[1728861998029,1.72594,2464.0,2463.9,3.61375]
[1728861999935,1.32,2464.0,2463.9,3.61375]
[1728862000835,1.7119,2464.0,2463.9,3.61375]
[1728862002335,1.32,2464.0,2463.9,0.40595]
[1728862010239,1.72594,2464.0,2463.9,0.40595]
[1728862010434,1.32,2464.0,2463.9,0.40595]
[1728862012841,1.72594,2464.0,2463.9,0.40595]
[1728862014447,0.40596,2463.9,2463.8,0.80787]
[1728862014635,2.12136,2463.9,2463.8,0.80787]
[1728862015547,1.7154,2463.9,2463.8,0.80787]
[1728862017736,0.3954,2463.9,2463.8,0.80787]
[1728862017941,1.32,2464.0,2463.8,0.4019]
[1728862018141,1.32,2464.0,2463.9,0.40596]
[1728862018551,1.72594,2464.0,2463.9,0.40596]
[1728862023143,0.40596,2463.9,2463.8,1.20316]
[1728862026248,1.72596,2463.9,2463.8,0.4019]
[1728862026451,2.12946,2463.9,2463.8,0.4019]
[1728862026757,2.12946,2463.9,2463.8,0.80787]
[1728862027759,3.71739253,2463.9,2463.8,0.80787]
[1728862028051,3.71739253,2463.9,2463.8,0.4019]
[1728862028252,3.71739253,2463.9,2463.8,0.55889065]
[1728862028550,2.12946,2463.9,2463.8,1.87668179]
[1728862028745,2.12946,2463.9,2463.8,1.74974044]
[1728862029146,3.71884645,2463.9,2463.8,1.74974044]
[1728862029654,2.12946,2463.9,2463.8,3.10226928]
[1728862030251,2.12946,2463.9,2463.8,3.55672367]
[1728862030650,2.12946,2463.9,2463.8,4.49232937]
[1728862031054,1.72596,2463.9,2463.8,4.49232937]
[1728862031357,1.99609139,2463.9,2463.8,4.49232937]
[1728862031853,1.99609139,2463.9,2463.8,4.91422404]
[1728862032454,1.99609139,2463.9,2463.8,1.96815111]
[1728862032455,0.40596,2463.9,2463.8,1.96815111]
[1728862033150,1.99613779,2463.9,2463.8,4.91936569]
[1728862035158,0.40596,2463.9,2463.8,4.91936569]
[1728862035659,1.99671059,2463.9,2463.8,4.91938876]
[1728862036458,1.99671059,2463.9,2463.8,3.82871128]
[1728862036754,1.99671059,2463.9,2463.8,3.32098899]
[1728862037051,1.99671059,2463.9,2463.8,3.32104602]
[1728862037251,1.99671059,2463.9,2463.8,5.42728249]
[1728862037450,1.99671059,2463.9,2463.8,4.91955616]
[1728862038254,0.40596,2463.9,2463.8,1.96817418]
[1728862039056,0.40596,2463.9,2463.8,1.96822402]
[1728862039277,0.40596,2463.9,2463.8,1.22967]
[1728862039451,0.40596,2463.9,2463.8,1.96821805]
[1728862039752,0.40596,2463.9,2463.8,1.63818988]
[1728862039958,0.40596,2463.9,2463.8,1.96821857]
[1728862040257,0.40596,2463.9,2463.8,1.14044432]
[1728862040460,1.72596,2463.9,2463.8,1.14044432]
[1728862040754,1.72596,2463.9,2463.8,1.54641432]
[1728862041350,1.72596,2463.9,2463.8,1.14044432]
[1728862041750,1.72596,2463.9,2463.8,1.54641432]
[1728862042155,1.99723118,2463.9,2463.8,3.14501682]
[1728862042357,1.99723118,2463.9,2463.8,2.89939769]
[1728862042561,0.40596,2463.9,2463.8,2.89939769]
[1728862043261,0.40596,2463.9,2463.8,2.16085337]
[1728862043556,0.40596,2463.9,2463.8,3.15570182]
[1728862044461,2.12169491,2464.0,2463.9,0.40596]
[1728862044653,2.12169491,2464.0,2463.9,8.99216]
[1728862044849,2.12169491,2464.0,2463.9,19.39966184]
[1728862045663,3.68242237,2464.4,2464.3,0.40589]
[1728862045867,3.18254237,2464.4,2464.3,2.23350776]
[1728862046062,3.18254237,2464.4,2464.3,6.29110776]
[1728862046262,3.18254237,2464.4,2464.3,6.67970776]
[1728862046558,3.18254237,2464.4,2464.3,7.41809061]
[1728862047852,3.18254237,2464.4,2464.3,3.36049061]
[1728862048068,3.18254237,2464.4,2464.3,6.31650441]
[1728862048260,3.18254237,2464.4,2464.3,10.37410441]
[1728862048460,3.58841237,2464.4,2464.3,5.98656459]
[1728862048763,3.18254237,2464.4,2464.3,10.37410805]
[1728862048964,3.18254237,2464.4,2464.3,4.95660978]
[1728862049267,3.18254237,2464.4,2464.3,7.41809524]
[1728862049761,0.40587,2464.5,2464.3,7.01220524]
[1728862049969,0.40587,2464.5,2464.4,1.54165748]
[1728862051369,0.40587,2464.5,2464.4,1.13578748]
[1728862051560,0.40587,2464.5,2464.4,0.3974]
[1728862051863,0.40587,2464.5,2464.2,3.2078]
[1728862051864,1.32,2464.5,2464.2,3.2078]
[1728862052059,0.40592,2464.1,2464.0,0.3876]
[1728862052256,1.72592,2464.1,2464.0,0.3876]
[1728862052869,0.40594,2464.0,2463.9,3.2078]
[1728862053170,2.14834,2464.0,2463.9,3.2078]
[1728862054872,0.40599,2463.7,2463.6,2.525]
[1728862055066,0.40599,2463.7,2463.6,5.47924205]
[1728862055262,0.40599,2463.7,2463.6,7.94322628]
[1728862055463,0.40599,2463.7,2463.6,8.60076843]
[1728862055666,0.40599,2463.7,2463.6,9.00677843]
[1728862055863,0.40599,2463.7,2463.6,8.60076843]
[1728862056367,1.72599,2463.7,2463.6,1.06354215]
[1728862056572,0.40602,2463.5,2463.4,1.06354215]
[1728862056870,0.40604,2463.4,2463.3,1.06354215]
[1728862057069,0.40604,2463.4,2463.2,2.42871577]
[1728862057070,0.40606,2463.3,2463.2,1.89704215]
[1728862058060,1.18694,2463.4,2463.3,0.40606]
[1728862058265,0.80504,2463.4,2463.3,0.40606]
[1728862058463,0.40601,2463.6,2463.5,0.40602]
[1728862058666,0.40601,2463.6,2463.5,1.72601]
[1728862059070,0.40601,2463.6,2463.5,1.32]
[1728862059380,1.72601,2463.6,2463.4,1.72603]
[1728862066068,0.40601,2463.6,2463.4,1.72603]
[1728862067678,0.40602,2463.5,2463.4,1.72603]
[1728862067876,0.40604,2463.4,2463.3,4.93385]
[1728862068076,0.80194,2463.4,2463.3,4.93385]
[1728862068372,0.80194,2463.4,2463.3,8.99305]
[1728862069574,0.40604,2463.4,2463.3,8.99305]
[1728862071683,1.7361,2463.6,2463.3,8.587]
[1728862071882,0.82211,2463.6,2463.5,1.32]
[1728862075378,2.14211,2463.6,2463.5,1.32]
[1728862077589,0.40602,2463.5,2463.4,1.32]
[1728862077787,0.79832,2463.5,2463.4,1.32]
[1728862077994,0.79832,2463.5,2463.3,4.93385]
[1728862077995,0.40604,2463.4,2463.3,4.93385]
[1728862078384,0.40604,2463.4,2463.3,8.99305]
[1728862078590,0.40604,2463.4,2463.3,8.99306]
[1728862080891,1.7123,2463.5,2463.4,0.40603]
[1728862080892,0.40603,2463.5,2463.4,0.40603]
[1728862081186,0.40603,2463.5,2463.4,2.13663]
[1728862082592,0.8137,2463.8,2463.4,1.7306]
[1728862082791,1.32,2463.9,2463.7,1.72599]
[1728862082990,1.80753,2464.1,2463.8,1.7305]
[1728862083293,0.80052,2464.1,2464.0,1.32]
[1728862083487,2.51862,2464.1,2464.0,1.32]
[1728862085391,0.40596,2463.9,2463.8,1.7305]
[1728862086092,0.40596,2463.9,2463.8,0.4105]
[1728862090197,1.72596,2463.9,2463.8,0.4105]
[1728862090401,1.72596,2463.9,2463.5,0.4069]
[1728862090402,6.39332,2463.9,2463.5,0.4069]
[1728862090698,0.40601,2463.6,2463.5,0.4069]
[1728862091087,0.79441,2463.6,2463.5,0.4069]
[1728862092205,0.79441,2463.6,2463.5,1.7269]
[1728862092398,0.79441,2463.6,2463.5,2.13292]
[1728862092797,0.79441,2463.6,2463.5,1.7269]
[1728862093802,0.79441,2463.6,2463.5,2.13292]
[1728862094101,0.79441,2463.6,2463.5,1.7269]
[1728862095603,0.79441,2463.6,2463.5,2.13292]
[1728862098103,0.79441,2463.6,2463.5,3.19693036]
[1728862098305,0.79441,2463.6,2463.5,5.08906442]
[1728862099008,0.79441,2463.6,2463.5,3.49304887]
[1728862099212,0.79441,2463.6,2463.5,3.49309105]
[1728862099412,0.79441,2463.6,2463.5,5.0891066]
[1728862099712,0.79441,2463.6,2463.5,4.6830866]
[1728862099906,0.79441,2463.6,2463.5,5.0891066]
[1728862101414,0.79441,2463.6,2463.5,4.6830866]
[1728862101617,2.11441,2463.6,2463.5,2.68017105]
[1728862101811,2.11441,2463.6,2463.5,2.38465474]
[1728862103114,2.11441,2463.6,2463.5,1.06465474]
[1728862104318,2.11441,2463.6,2463.4,1.72604]
[1728862104319,0.40602,2463.5,2463.4,1.72604]
[1728862105216,0.40602,2463.5,2463.4,4.68394686]
[1728862107015,0.40602,2463.5,2463.4,3.08672603]
[1728862107214,0.40602,2463.5,2463.4,4.68394686]
[1728862107614,0.40602,2463.5,2463.4,3.08672603]
[1728862108414,0.40602,2463.5,2463.4,1.72604]
[1728862108614,0.40602,2463.5,2463.4,3.08672885]
[1728862108823,0.40602,2463.5,2463.4,4.68394968]
[1728862109021,0.40602,2463.5,2463.4,3.08672885]
[1728862109323,0.40602,2463.5,2463.4,4.68394968]
[1728862109620,2.11442,2463.6,2463.5,0.40602]
[1728862109814,0.79442,2463.6,2463.5,2.38481513]
[1728862111521,0.79442,2463.6,2463.5,2.79083513]
[1728862112622,0.79442,2463.6,2463.5,1.72602]
[1728862112820,0.79442,2463.6,2463.5,1.32]
[1728862113322,0.40602,2463.5,2463.4,1.72603]
[1728862113620,0.40602,2463.5,2463.4,4.68392018]
[1728862121921,5.78522,2463.5,2463.4,2.95789018]
[1728862122125,5.78522,2463.5,2463.3,1.47096772]
[1728862122126,0.40604,2463.4,2463.3,1.47096772]
[1728862122329,2.11564,2463.4,2463.3,2.42580313]
[1728862122531,2.11564,2463.4,2463.3,1.06490772]
[1728862123132,2.11564,2463.4,2463.3,1.47096772]
[1728862123527,2.11564,2463.4,2463.3,1.06490772]
[1728862123734,2.11564,2463.4,2463.3,1.47096772]
[1728862126741,2.11564,2463.4,2463.3,1.86386772]
[1728862129136,2.11564,2463.4,2463.3,0.79896]
[1728862129331,2.11564,2463.4,2463.3,1.86386772]
[1728862129732,0.80503,2463.5,2463.3,2.77780772]
[1728862129932,0.3884,2463.6,2463.4,1.32]
[1728862130127,0.3884,2463.6,2463.5,1.72602]
[1728862130832,0.3884,2463.6,2463.5,0.40602]
[1728862131540,0.40603,2463.5,2463.4,0.40603]
[1728862131842,1.32,2463.5,2463.4,0.40604]
[1728862132438,1.32,2463.5,2463.4,1.47094772]
[1728862134141,1.32,2463.5,2463.4,0.40604]
[1728862134342,1.72602,2463.5,2463.4,0.40604]
[1728862134542,1.32,2463.5,2463.4,1.47094772]
[1728862135437,1.72602,2463.5,2463.4,1.47094772]
[1728862135640,1.32,2463.5,2463.4,1.47094772]
[1728862136640,1.32,2463.5,2463.4,2.83869643]
[1728862137244,1.32,2463.5,2463.4,1.47094772]
[1728862139637,5.78522,2463.5,2463.4,1.06490772]
[1728862139837,5.78522,2463.5,2463.3,1.06490772]
[1728862139838,0.40604,2463.4,2463.3,1.06490772]
[1728862140043,2.56884,2463.4,2463.3,1.06490772]
[1728862140542,2.56884,2463.4,2463.3,1.47096772]
[1728862149045,1.72604,2463.4,2463.3,2.83884983]
[1728862149641,2.50879701,2463.6,2463.5,0.40602]
[1728862149849,2.50879701,2463.6,2463.5,1.72602]
[1728862149850,2.12039701,2463.6,2463.5,1.72602]
[1728862150049,3.44039701,2463.7,2463.6,0.40601]
[1728862150440,6.63269627,2463.9,2463.7,0.40599]
[1728862150441,6.11805701,2463.9,2463.7,0.40599]
[1728862150640,5.71209701,2463.9,2463.8,0.79677]
[1728862151046,6.11805701,2463.9,2463.8,0.79677]
[1728862152543,7.43805701,2463.9,2463.8,0.79677]
[1728862153150,5.32819701,2463.9,2463.8,2.11677]
[1728862153343,3.2078,2463.9,2463.8,3.18181722]
[1728862153746,3.44039701,2464.2,2464.1,0.40592]
[1728862154243,1.32,2464.2,2464.1,0.40592]
[1728862155852,1.72591,2464.2,2464.1,0.40592]
[1728862156855,1.32,2464.2,2464.1,0.40592]
[1728862157353,3.32999701,2464.4,2464.2,0.40591]
[1728862157552,2.12039701,2464.5,2464.3,1.7278]
[1728862157758,1.32,2464.6,2464.5,0.40586]
[1728862159455,1.72584,2464.6,2464.5,0.40586]
[1728862159663,5.3776,2464.6,2464.3,0.4078]
[1728862159959,1.32,2464.4,2464.3,0.81369]
[1728862160155,1.72587,2464.4,2464.3,0.81369]
[1728862160458,1.32,2464.4,2464.3,0.81369]
[1728862165358,1.32,2464.4,2463.9,1.06470473]
[1728862165359,1.32,2464.4,2463.9,1.32]
[1728862165564,0.40591,2464.2,2464.1,0.40591]
[1728862165764,0.40592,2464.1,2464.0,0.82973]
[1728862165955,2.26196,2464.3,2463.9,0.81855]
[1728862166258,0.40594,2464.0,2463.9,0.40595]
[1728862166658,0.40593,2464.1,2464.0,0.40594]
[1728862166859,1.72593,2464.1,2463.9,0.40594]
[1728862167061,1.32,2464.0,2463.9,0.40594]
[1728862167362,1.72594,2464.0,2463.9,0.40594]
[1728862168960,1.32,2464.0,2463.9,0.40594]
[1728862170060,1.72594,2464.0,2463.9,0.40594]
[1728862170660,1.32,2464.0,2463.9,0.40594]
[1728862172562,1.72594,2464.0,2463.9,0.40594]
[1728862173760,1.72594,2464.0,2463.9,0.73598381]
[1728862173964,1.72594,2464.0,2463.9,1.14473876]
[1728862174260,1.32,2464.0,2463.9,1.14473876]
[1728862174469,0.40594,2464.1,2464.0,0.40594]
[1728862174668,1.72594,2464.1,2464.0,0.89317658]
[1728862175171,1.72594,2464.1,2464.0,0.6900727]
[1728862176459,1.72594,2464.1,2464.0,0.2841327]
[1728862177255,1.32,2464.1,2463.9,0.40595]
[1728862177462,1.72594,2464.0,2463.9,0.40595]
[1728862177660,1.72594,2464.0,2463.9,1.14468635]
[1728862178367,1.72594,2464.0,2463.9,0.73873635]
[1728862178559,1.72594,2464.0,2463.9,1.14469635]
[1728862180965,1.72594,2464.0,2463.9,0.81466382]
[1728862181161,1.72594,2464.0,2463.9,0.28410783]
[1728862184777,1.72594,2464.0,2463.8,0.82977]
[1728862184967,0.40594,2464.0,2463.9,0.28400712]
[1728862185276,1.72594,2464.0,2463.9,0.68996712]
[1728862188567,1.72594,2464.0,2463.9,0.68996337]
[1728862189068,1.72594,2464.0,2463.9,0.68997496]
[1728862189278,1.72594,2464.0,2463.9,0.68997671]
[1728862190863,1.72594,2464.0,2463.9,0.28401671]
[1728862193876,1.72594,2464.0,2463.9,0.68997671]
[1728862197668,2.13554,2464.0,2463.9,0.68997671]
[1728862199780,2.13554,2464.0,2463.9,0.6900085]
[1728862200082,2.13554,2464.0,2463.9,0.69001132]
[1728862203678,0.40591,2464.2,2464.1,0.40592]
[1728862203883,1.32,2464.3,2464.2,0.40591]
[1728862204081,1.32,2464.3,2464.2,1.09756132]
[1728862204696,1.72589,2464.3,2464.2,1.09756132]
[1728862204874,1.32,2464.3,2464.2,1.09756132]
[1728862205075,1.72589,2464.3,2464.2,1.09756132]
[1728862205376,1.32,2464.3,2464.2,1.09756132]
[1728862205781,1.32,2464.3,2464.2,1.09738411]
[1728862207187,1.72589,2464.3,2464.1,0.78871]
[1728862207387,1.72591,2464.2,2464.1,0.78871]
[1728862207577,1.72591,2464.2,2464.1,1.072573]
[1728862207578,2.11961,2464.2,2464.1,1.072573]
[1728862207779,2.11961,2464.2,2464.1,0.283863]
[1728862207973,0.40592,2464.1,2464.0,0.80943]
[1728862208189,0.40592,2464.1,2464.0,1.09331365]
[1728862208190,1.72592,2464.1,2464.0,1.09331365]
[1728862208779,1.72592,2464.1,2464.0,0.28388365]
[1728862209084,0.40594,2464.0,2463.9,0.81775]
[1728862209287,2.13544,2464.0,2463.9,0.81775]
[1728862209490,2.13544,2464.0,2463.9,1.10163417]
[1728862210177,2.12039701,2464.1,2463.9,0.69568417]
[1728862210482,3.84630701,2464.2,2464.1,0.40592]
[1728862213391,0.40593,2464.1,2464.0,0.40594]
[1728862213589,1.72593,2464.1,2464.0,0.40594]
[1728862214393,3.84632701,2464.1,2464.0,0.40594]
[1728862214888,1.72593,2464.1,2464.0,0.53287337]
[1728862215089,1.72593,2464.1,2464.0,0.68984164]
[1728862215481,1.72593,2464.1,2464.0,0.53287337]
[1728862215686,1.72593,2464.1,2464.0,0.40594]
[1728862215882,1.72593,2464.1,2464.0,0.53287357]
[1728862216591,1.72593,2464.1,2464.0,0.68983909]
[1728862217379,3.84632701,2464.1,2464.0,0.15696552]
[1728862217588,0.40594,2464.0,2463.9,1.88245473]
[1728862217787,2.10894,2464.0,2463.9,2.16634283]
[1728862217979,0.383,2464.0,2463.9,2.16634283]
[1728862218185,1.72594,2464.1,2464.0,0.40594]
[1728862218394,1.72594,2464.1,2464.0,0.6898176]
[1728862219392,0.40594,2464.0,2463.9,1.88245473]
[1728862219692,1.72594,2464.0,2463.9,2.16637859]
[1728862220091,1.72594,2464.0,2463.9,1.88245473]
[1728862220296,1.32,2464.0,2463.9,2.16637117]
[1728862220587,5.32819701,2464.1,2463.9,2.1663712]
[1728862220588,5.73412701,2464.1,2463.9,2.1663712]
[1728862220890,7.05412701,2464.1,2463.9,1.47650473]
[1728862221087,7.05412701,2464.1,2464.0,0.40594]
[1728862221790,5.32819701,2464.1,2464.0,0.40594]
[1728862221983,6.64819701,2464.1,2464.0,0.40594]
[1728862222185,3.2078,2464.1,2464.0,2.00983202]
[1728862222490,3.44039701,2464.3,2464.0,7.42995146]
[1728862222685,3.44039701,2464.3,2464.2,0.40591]
[1728862222890,3.44039701,2464.3,2464.2,0.53283462]
[1728862222891,1.32,2464.3,2464.2,0.53283462]
[1728862223092,1.32,2464.3,2464.2,1.08647816]
[1728862223292,1.32,2464.3,2464.2,0.92953462]
[1728862223494,5.32819701,2464.4,2464.2,2.00054663]
[1728862223697,1.32,2464.5,2464.3,2.3848253]
[1728862223900,1.32,2464.4,2464.3,1.5976313]
[1728862224090,1.32,2464.4,2464.3,2.06030483]
[1728862224395,1.32,2464.4,2464.3,3.12485959]
[1728862224594,1.32,2464.4,2464.3,3.12459636]
[1728862224793,0.40586,2464.5,2464.3,3.12459636]
[1728862224794,1.32,2464.5,2464.4,0.40587]
[1728862225000,1.32,2464.5,2464.4,0.68970805]
[1728862225382,1.32,2464.5,2464.4,0.40587]
[1728862225993,0.3911,2464.6,2464.3,2.38430861]
[1728862226195,2.21439701,2464.8,2464.5,2.38430861]
[1728862226407,3.93169701,2465.1,2465.0,0.40578]
[1728862226587,3.47134627,2465.2,2464.6,3.4943618]
[1728862226588,1.32,2465.2,2465.1,0.40576]
[1728862226790,1.32,2465.2,2465.0,1.72577]
[1728862226994,2.52613701,2465.3,2465.1,0.3947]
[1728862227301,0.40574,2465.2,2465.1,0.3947]
[1728862227494,1.32,2465.2,2465.1,0.3947]
[1728862228306,1.32,2465.2,2465.0,0.3819]
[1728862228501,4.5278,2465.1,2464.8,0.793]
[1728862228694,1.32,2464.9,2464.8,0.79301]
[1728862230099,1.32,2464.9,2464.6,0.3926]
[1728862230401,0.3995,2465.0,2464.4,3.2078]
[1728862230402,1.32,2464.7,2464.4,3.2078]
[1728862230699,1.32,2464.5,2464.4,3.2078]
[1728862230896,1.72586,2464.5,2464.4,3.2078]
[1728862232003,1.72586,2464.5,2464.3,0.40589]
[1728862233205,1.32,2464.5,2464.4,0.40587]
[1728862233596,1.32,2464.5,2464.2,2.5211]
[1728862233799,1.72586,2464.5,2464.3,0.40588]
[1728862235906,0.40587,2464.4,2464.3,0.40589]
[1728862236206,1.72587,2464.5,2464.3,0.40589]
[1728862237405,1.72587,2464.5,2464.2,2.5211]
[1728862237605,1.72587,2464.5,2464.3,0.40588]
[1728862238101,1.72587,2464.5,2464.3,0.40589]
[1728862239805,4.93367,2464.5,2464.3,0.40589]
[1728862241504,0.40587,2464.4,2464.3,0.40589]
[1728862241700,4.5278,2464.5,2464.2,2.927]
[1728862242008,0.40588,2464.4,2464.2,2.927]
[1728862242299,0.40588,2464.4,2464.3,0.40589]
[1728862245007,4.5278,2464.5,2464.3,0.40589]
[1728862245206,4.93367,2464.5,2464.3,0.40589]
[1728862245506,4.93367,2464.5,2464.4,0.40587]
[1728862248906,4.93367,2464.5,2464.4,1.72587]
[1728862248907,3.61367,2464.5,2464.4,1.72587]
[1728862249701,3.2078,2464.5,2464.4,1.72587]
[1728862249899,4.0047,2464.9,2464.4,5.78347]
[1728862250105,4.4105,2464.9,2464.8,0.40581]
[1728862250405,5.3247,2464.9,2464.8,0.40581]
[1728862250602,5.73049,2464.9,2464.8,0.40581]
[1728862252806,0.40581,2464.8,2464.7,1.19481]
[1728862253011,0.40584,2464.6,2464.5,0.40585]
[1728862253214,1.72584,2464.6,2464.5,0.40585]
[1728862253513,1.32,2464.6,2464.5,0.40585]
[1728862255102,1.32,2464.6,2464.4,0.3926]
[1728862255103,1.32,2464.7,2464.4,0.3926]
[1728862255301,4.0047,2464.9,2464.4,0.3926]
[1728862255302,0.40582,2464.8,2464.7,0.40581]
[1728862255504,0.7969,2464.9,2464.8,0.40581]
[1728862255716,2.52269,2464.9,2464.8,0.40581]
[1728862255907,2.52269,2464.9,2464.7,0.40582]
[1728862255908,0.40582,2464.8,2464.7,0.40582]
[1728862256113,1.72582,2464.8,2464.7,0.40582]
[1728862259606,1.32,2464.8,2464.7,0.40582]